{"text_format":"1","workbook":"xlsx","n_sheets":1,"sheets":["Sheet1"],"not_rendered":{"charts":1,"images":1,"macros":1,"external_links":0,"defined_names":0,"comments":0,"pivot_tables":0},"unopened":[],"bounds":{"document_bytes":16777216,"sheet_cells":100000,"rows_first":2000,"rows_last":500,"rows_between":2000,"halvings":0,"cell_chars":16384,"cell_head_chars":4096},"cells_cut":0,"cells_raw":0,"read":"whole","date_system":"1900"}

{"sheet":"Sheet1","index":0,"n_rows":44,"n_cols":42,"rows_kept":44,"cut":false,"hidden":false,"merged":[[38,31,39,32],[40,31,41,32],[38,33,39,34],[40,33,41,34],[43,9,43,11],[4,9,4,11],[36,9,36,10],[38,9,38,10],[40,9,40,10],[41,9,41,10],[42,9,42,11],[42,13,42,15],[43,13,43,15],[4,17,4,19],[36,17,36,18],[38,17,38,18],[40,17,40,18],[41,17,41,18],[42,17,42,19],[43,17,43,19],[4,13,4,15],[36,13,36,14],[38,13,38,14],[40,13,40,14],[41,13,41,14]]}
[]
[]
[]
[]
[null,null,null,null,null,null,null,null,null,"Evaluation 1",null,null,null,"Evaluation 2",null,null,null,"Évaluation 3"]
[null,null,null,null,null,null,null,null,null,"Prétest","Postest","TE par élève",null,"Prétest","Postest","TE par élève",null,"Prétest","Postest","TE par élève"]
[null,null,null,null,null,null,null,null,1,null,null,{"$f":"(K7-J7)/$J$42","v":{"$error":"#DIV/0!"}},{"$f":"I7","v":1},null,null,{"$f":"(O7-N7)/$N$42","v":{"$error":"#DIV/0!"}},{"$f":"I7","v":1},null,null,{"$f":"(S7-R7)/$R$42","v":{"$error":"#DIV/0!"}}]
[null,null,null,null,null,null,null,null,2,null,null,{"$error":"#DIV/0!"},{"$f":"I8","v":2},null,null,{"$error":"#DIV/0!"},{"$f":"I8","v":2},null,null,{"$f":"(S8-R8)/$R$42","v":{"$error":"#DIV/0!"}}]
[null,null,null,null,null,null,null,null,3,null,null,{"$error":"#DIV/0!"},3,null,null,{"$error":"#DIV/0!"},3,null,null,{"$error":"#DIV/0!"}]
[null,null,null,null,null,null,null,null,4,null,null,{"$error":"#DIV/0!"},4,null,null,{"$error":"#DIV/0!"},4,null,null,{"$error":"#DIV/0!"}]
[null,null,null,null,null,null,null,null,5,null,null,{"$error":"#DIV/0!"},5,null,null,{"$error":"#DIV/0!"},5,null,null,{"$error":"#DIV/0!"}]
[null,null,null,null,null,null,null,null,6,null,null,{"$error":"#DIV/0!"},6,null,null,{"$error":"#DIV/0!"},6,null,null,{"$error":"#DIV/0!"}]
[null,null,null,null,null,null,null,null,7,null,null,{"$error":"#DIV/0!"},7,null,null,{"$error":"#DIV/0!"},7,null,null,{"$error":"#DIV/0!"}]
[null,null,null,null,null,null,null,null,8,null,null,{"$error":"#DIV/0!"},8,null,null,{"$error":"#DIV/0!"},8,null,null,{"$error":"#DIV/0!"}]
[null,null,null,null,null,null,null,null,9,null,null,{"$error":"#DIV/0!"},9,null,null,{"$error":"#DIV/0!"},9,null,null,{"$error":"#DIV/0!"}]
[null,null,null,null,null,null,null,null,10,null,null,{"$error":"#DIV/0!"},10,null,null,{"$error":"#DIV/0!"},10,null,null,{"$error":"#DIV/0!"}]
[null,null,null,null,null,null,null,null,11,null,null,{"$error":"#DIV/0!"},11,null,null,{"$error":"#DIV/0!"},11,null,null,{"$error":"#DIV/0!"}]
[null,null,null,null,null,null,null,null,12,null,null,{"$error":"#DIV/0!"},12,null,null,{"$error":"#DIV/0!"},12,null,null,{"$error":"#DIV/0!"}]
[null,null,null,null,null,null,null,null,13,null,null,{"$error":"#DIV/0!"},13,null,null,{"$error":"#DIV/0!"},13,null,null,{"$error":"#DIV/0!"}]
[null,null,null,null,null,null,null,null,14,null,null,{"$error":"#DIV/0!"},14,null,null,{"$error":"#DIV/0!"},14,null,null,{"$error":"#DIV/0!"}]
[null,null,null,null,null,null,null,null,15,null,null,{"$error":"#DIV/0!"},15,null,null,{"$error":"#DIV/0!"},15,null,null,{"$error":"#DIV/0!"}]
[null,null,null,null,null,null,null,null,16,null,null,{"$error":"#DIV/0!"},16,null,null,{"$error":"#DIV/0!"},16,null,null,{"$error":"#DIV/0!"}]
[null,null,null,null,null,null,null,null,17,null,null,{"$f":"(K23-J23)/$J$42","v":{"$error":"#DIV/0!"}},17,null,null,{"$f":"(O23-N23)/$N$42","v":{"$error":"#DIV/0!"}},17,null,null,{"$error":"#DIV/0!"}]
[null,null,null,null,null,null,null,null,18,null,null,{"$error":"#DIV/0!"},18,null,null,{"$error":"#DIV/0!"},18,null,null,{"$error":"#DIV/0!"}]
[null,null,null,null,null,null,null,null,19,null,null,{"$error":"#DIV/0!"},19,null,null,{"$error":"#DIV/0!"},19,null,null,{"$error":"#DIV/0!"}]
[null,null,null,null,null,null,null,null,20,null,null,{"$error":"#DIV/0!"},20,null,null,{"$error":"#DIV/0!"},20,null,null,{"$error":"#DIV/0!"}]
[null,null,null,null,null,null,null,null,21,null,null,{"$error":"#DIV/0!"},21,null,null,{"$error":"#DIV/0!"},21,null,null,{"$error":"#DIV/0!"}]
[null,null,null,null,null,null,null,null,22,null,null,{"$error":"#DIV/0!"},22,null,null,{"$error":"#DIV/0!"},22,null,null,{"$error":"#DIV/0!"},null,null,null,null,null,null,null,null,null,null,null,null,null,null,null,null,null,null,null,null,null,"owo"]
[null,null,null,null,null,null,null,null,23,null,null,{"$error":"#DIV/0!"},23,null,null,{"$error":"#DIV/0!"},23,null,null,{"$error":"#DIV/0!"}]
[null,null,null,null,null,null,null,null,24,null,null,{"$error":"#DIV/0!"},24,null,null,{"$error":"#DIV/0!"},24,null,null,{"$error":"#DIV/0!"}]
[null,null,null,null,null,null,null,null,25,null,null,{"$error":"#DIV/0!"},25,null,null,{"$error":"#DIV/0!"},25,null,null,{"$error":"#DIV/0!"}]
[null,null,null,null,null,null,null,null,26,null,null,{"$error":"#DIV/0!"},26,null,null,{"$error":"#DIV/0!"},26,null,null,{"$error":"#DIV/0!"}]
[null,null,null,null,null,null,null,null,27,null,null,{"$error":"#DIV/0!"},27,null,null,{"$error":"#DIV/0!"},27,null,null,{"$error":"#DIV/0!"}]
[null,null,null,null,null,null,null,null,28,null,null,{"$error":"#DIV/0!"},28,null,null,{"$error":"#DIV/0!"},28,null,null,{"$error":"#DIV/0!"}]
[null,null,null,null,null,null,null,null,29,null,null,{"$f":"(K35-J35)/$J$42","v":{"$error":"#DIV/0!"}},29,null,null,{"$error":"#DIV/0!"},29,null,null,{"$error":"#DIV/0!"}]
[null,null,null,null,null,null,null,null,30,null,null,{"$error":"#DIV/0!"},30,null,null,{"$error":"#DIV/0!"},30,null,null,{"$error":"#DIV/0!"}]
[null,null,null,null,null,null,null,null,null,"Moyenne",null,null,null,"Moyenne",null,null,null,"Moyenne"]
[null,null,null,null,null,null,null,null,null,{"$f":"AVERAGE(J7:J36)","v":{"$error":"#DIV/0!"}},{"$f":"AVERAGE(K7:K36)","v":{"$error":"#DIV/0!"}},null,null,{"$f":"AVERAGE(N7:N36)","v":{"$error":"#DIV/0!"}},{"$f":"AVERAGE(O7:O36)","v":{"$error":"#DIV/0!"}},null,null,{"$f":"AVERAGE(R7:R36)","v":{"$error":"#DIV/0!"}},{"$f":"AVERAGE(S7:S36)","v":{"$error":"#DIV/0!"}}]
[null,null,null,null,null,null,null,null,null,"Ecart type",null,null,null,"Ecart type",null,null,null,"Ecart type",null,null,null,null,null,null,null,null,null,null,null,null,null,"Minimum",null,"Maximum"]
[null,null,null,null,null,null,null,null,null,{"$f":"_xlfn.STDEV.S(J7:J36)","v":{"$error":"#DIV/0!"}},{"$f":"_xlfn.STDEV.S(K7:K36)","v":{"$error":"#DIV/0!"}},null,null,{"$f":"_xlfn.STDEV.S(N7:N36)","v":{"$error":"#DIV/0!"}},{"$f":"_xlfn.STDEV.S(O7:O36)","v":{"$error":"#DIV/0!"}},null,null,{"$f":"_xlfn.STDEV.S(R7:R36)","v":{"$error":"#DIV/0!"}},{"$f":"_xlfn.STDEV.S(S7:S36)","v":{"$error":"#DIV/0!"}}]
[null,null,null,null,null,null,null,null,null,"Ecart type moyen ",null,null,null,"Ecart type moyen ",null,null,null,"Ecart type moyen ",null,null,null,null,null,null,null,null,null,null,null,null,null,1,null,6]
[null,null,null,null,null,null,null,null,null,{"$f":"AVERAGE(J40:K40)","v":{"$error":"#DIV/0!"}},null,null,null,{"$f":"AVERAGE(N40:O40)","v":{"$error":"#DIV/0!"}},null,null,null,{"$f":"AVERAGE(R40:S40)","v":{"$error":"#DIV/0!"}}]
[null,null,null,null,null,null,null,null,null,"Taille d'effet",null,null,null,"Taille d'effet",null,null,null,"Taille d'effet"]
[null,null,null,null,null,null,null,null,null,{"$f":"(K38-J38)/J42","v":{"$error":"#DIV/0!"}},null,null,null,{"$f":"(O38-N38)/N42","v":{"$error":"#DIV/0!"}},null,null,null,{"$f":"(S38-R38)/R42","v":{"$error":"#DIV/0!"}}]